[Event "Early-Titled-Tuesday-Blitz-February-13-2024"]
[Site "Chess.com"]
[Date "2024.02.13"]
[Round "4"]
[White "secrethawk1"]
[Black "miraitrunks"]
[Result "1-0"]
[WhiteElo "2493"]
[BlackElo "2178"]
[TimeControl "180+1"]
[EndTime "8:39:46 PST"]
[Termination "secrethawk1 won by resignation"]

1. d4 {[%clk 0:03:00.9]} 1... Nf6 {[%clk 0:02:59.5]} 2. Bf4 {[%clk 0:02:58.2]}
2... g6 {[%clk 0:02:57.1]} 3. Nf3 {[%clk 0:02:57.3]} 3... Bg7 {[%clk 0:02:57.4]}
4. e3 {[%clk 0:02:56.8]} 4... O-O {[%clk 0:02:57.4]} 5. h3 {[%clk 0:02:55.8]}
5... d6 {[%clk 0:02:57]} 6. Be2 {[%clk 0:02:55]} 6... c5 {[%clk 0:02:57.2]} 7.
c3 {[%clk 0:02:53.7]} 7... cxd4 {[%clk 0:02:55.9]} 8. exd4 {[%clk 0:02:52.5]}
8... Qb6 {[%clk 0:02:50]} 9. Qb3 {[%clk 0:02:51.9]} 9... Nbd7 {[%clk 0:02:48.4]}
10. O-O {[%clk 0:02:49.3]} 10... Re8 {[%clk 0:02:43.5]} 11. Bh2 {[%clk
0:02:44.2]} 11... e5 {[%clk 0:02:42.2]} 12. dxe5 {[%clk 0:02:39.5]} 12... dxe5
{[%clk 0:02:43.1]} 13. Nbd2 {[%clk 0:02:38.6]} 13... e4 {[%clk 0:02:38.5]} 14.
Nd4 {[%clk 0:02:32.2]} 14... e3 {[%clk 0:02:38.5]} 15. fxe3 {[%clk 0:02:29.9]}
15... Rxe3 {[%clk 0:02:39.4]} 16. Nc4 {[%clk 0:02:19.1]} 16... Qxb3 {[%clk
0:02:27.1]} 17. axb3 {[%clk 0:02:20]} 17... Re7 {[%clk 0:02:23.6]} 18. Rfe1
{[%clk 0:01:59.6]} 18... Ne4 {[%clk 0:02:17.5]} 19. Bf3 {[%clk 0:01:48.3]} 19...
Ndc5 {[%clk 0:02:13.4]} 20. b4 {[%clk 0:01:31.6]} 20... Bxd4+ {[%clk 0:02:10.9]}
21. cxd4 {[%clk 0:01:30.3]} 21... Nb3 {[%clk 0:01:57.1]} 22. Ra3 {[%clk
0:01:28.3]} 22... Be6 {[%clk 0:01:46.9]} 23. Rxe4 {[%clk 0:01:21.7]} 1-0

[Event "Early-Titled-Tuesday-Blitz-February-13-2024"]
[Site "Chess.com"]
[Date "2024.02.13"]
[Round "4"]
[White "jacky72"]
[Black "GM4life"]
[Result "0-1"]
[WhiteElo "2758"]
[BlackElo "2566"]
[TimeControl "180+1"]
[EndTime "8:39:50 PST"]
[Termination "GM4life won by resignation"]

1. Nc3 {[%clk 0:03:00.9]} 1... Nf6 {[%clk 0:02:57.5]} 2. e4 {[%clk 0:03:01.1]}
2... e5 {[%clk 0:02:57.1]} 3. Bc4 {[%clk 0:03:01.6]} 3... Bb4 {[%clk 0:02:56.1]}
4. Nge2 {[%clk 0:03:00.4]} 4... O-O {[%clk 0:02:56]} 5. O-O {[%clk 0:03:00.2]}
5... c6 {[%clk 0:02:55.7]} 6. a3 {[%clk 0:03:00.7]} 6... Bxc3 {[%clk 0:02:52.4]}
7. Nxc3 {[%clk 0:03:00.6]} 7... d5 {[%clk 0:02:52.9]} 8. exd5 {[%clk 0:02:59.9]}
8... cxd5 {[%clk 0:02:53.8]} 9. Bb3 {[%clk 0:03:00.6]} 9... d4 {[%clk
0:02:53.5]} 10. Ne2 {[%clk 0:03:00.7]} 10... d3 {[%clk 0:02:49.1]} 11. cxd3
{[%clk 0:03:00.2]} 11... Nc6 {[%clk 0:02:49.6]} 12. d4 {[%clk 0:02:57.2]} 12...
Nxd4 {[%clk 0:02:49.6]} 13. Nxd4 {[%clk 0:02:57.2]} 13... Qxd4 {[%clk
0:02:49.4]} 14. d3 {[%clk 0:02:58.1]} 14... Bf5 {[%clk 0:02:49.2]} 15. Be3
{[%clk 0:02:57.5]} 15... Qxd3 {[%clk 0:02:48.2]} 16. Qxd3 {[%clk 0:02:57.8]}
16... Bxd3 {[%clk 0:02:49.1]} 17. Rfd1 {[%clk 0:02:56.6]} 17... e4 {[%clk
0:02:48.8]} 18. f3 {[%clk 0:02:54.5]} 18... Be2 {[%clk 0:02:44.9]} 19. Rd4
{[%clk 0:02:44.4]} 19... exf3 {[%clk 0:02:45]} 20. gxf3 {[%clk 0:02:43.4]} 20...
Bxf3 {[%clk 0:02:44.9]} 21. Rf1 {[%clk 0:02:44.1]} 21... Bc6 {[%clk 0:02:44.5]}
22. Bg5 {[%clk 0:02:44.4]} 22... Rfd8 {[%clk 0:02:43.3]} 23. Bxf6 {[%clk
0:02:41.9]} 23... gxf6 {[%clk 0:02:42.7]} 24. Rxd8+ {[%clk 0:02:42]} 24... Rxd8
{[%clk 0:02:41.7]} 25. Rxf6 {[%clk 0:02:42.9]} 25... Bd5 {[%clk 0:02:29.6]} 26.
Bxd5 {[%clk 0:02:40.5]} 26... Rxd5 {[%clk 0:02:30.5]} 27. Rf2 {[%clk 0:02:41]}
27... Kf8 {[%clk 0:02:26.5]} 28. Re2 {[%clk 0:02:40.3]} 28... Rd3 {[%clk
0:02:22]} 29. Kf2 {[%clk 0:02:40]} 29... h5 {[%clk 0:02:09.6]} 30. Kg2 {[%clk
0:02:39.7]} 30... h4 {[%clk 0:02:08.6]} 31. h3 {[%clk 0:02:36.9]} 31... Rg3+
{[%clk 0:02:07.7]} 32. Kh2 {[%clk 0:02:37.2]} 32... Rd3 {[%clk 0:02:04.2]} 33.
Kg2 {[%clk 0:02:36.6]} 33... Kg7 {[%clk 0:01:59.9]} 34. Rf2 {[%clk 0:02:36.1]}
34... Kg6 {[%clk 0:01:59.4]} 35. Rc2 {[%clk 0:02:34.7]} 35... f5 {[%clk
0:01:58.6]} 36. Kh2 {[%clk 0:02:34.1]} 36... Kg5 {[%clk 0:01:58.4]} 37. Rg2+
{[%clk 0:02:33.9]} 37... Kf4 {[%clk 0:01:57.7]} 38. Rf2+ {[%clk 0:02:34.6]}
38... Rf3 {[%clk 0:01:57.9]} 39. Rc2 {[%clk 0:02:33.2]} 39... Rb3 {[%clk
0:01:57.6]} 40. Rc4+ {[%clk 0:02:32.5]} 40... Kg5 {[%clk 0:01:57]} 41. Rc2
{[%clk 0:02:32.9]} 41... a5 {[%clk 0:01:55.8]} 42. Kg2 {[%clk 0:02:33.2]} 42...
a4 {[%clk 0:01:54.4]} 43. Kh2 {[%clk 0:02:32.9]} 43... b5 {[%clk 0:01:54.6]} 44.
Rf2 {[%clk 0:02:32.5]} 44... f4 {[%clk 0:01:53.1]} 45. Rc2 {[%clk 0:02:33]}
45... f3 {[%clk 0:01:53]} 46. Kg1 {[%clk 0:02:33]} 46... Kf4 {[%clk 0:01:53]}
47. Kf2 {[%clk 0:02:33.5]} 47... Re3 {[%clk 0:01:49.1]} 48. Rd2 {[%clk
0:02:31.2]} 48... Re2+ {[%clk 0:01:30.7]} 49. Rxe2 {[%clk 0:02:30.2]} 49... fxe2
{[%clk 0:01:31.6]} 50. Kxe2 {[%clk 0:02:31.1]} 50... Kg3 {[%clk 0:01:32.5]} 51.
Ke3 {[%clk 0:02:31.8]} 51... Kxh3 {[%clk 0:01:32.9]} 52. Kf3 {[%clk 0:02:32.7]}
52... Kh2 {[%clk 0:01:31.6]} 53. Kf2 {[%clk 0:02:33.3]} 53... h3 {[%clk
0:01:32]} 54. Kf1 {[%clk 0:02:32.8]} 54... Kg3 {[%clk 0:01:32.4]} 55. Kg1 {[%clk
0:02:33.6]} 55... Kf3 {[%clk 0:01:32.7]} 56. Kh2 {[%clk 0:02:34.2]} 56... Ke3
{[%clk 0:01:33.2]} 57. b3 {[%clk 0:02:35]} 57... Kd3 {[%clk 0:01:33.9]} 58. bxa4
{[%clk 0:02:35.3]} 58... bxa4 {[%clk 0:01:33.8]} 59. Kxh3 {[%clk 0:02:36.2]}
59... Kc3 {[%clk 0:01:34.3]} 60. Kg3 {[%clk 0:02:37]} 60... Kb3 {[%clk
0:01:34.8]} 61. Kf2 {[%clk 0:02:37.9]} 61... Kxa3 {[%clk 0:01:35.3]} 62. Ke2
{[%clk 0:02:38.8]} 62... Kb2 {[%clk 0:01:35.8]} 63. Kd2 {[%clk 0:02:39.5]} 63...
a3 {[%clk 0:01:36.2]} 0-1

[Event "Early-Titled-Tuesday-Blitz-February-13-2024"]
[Site "Chess.com"]
[Date "2024.02.13"]
[Round "4"]
[White "JeFumeDesClopes"]
[Black "ActorXu"]
[Result "0-1"]
[WhiteElo "2583"]
[BlackElo "2815"]
[TimeControl "180+1"]
[EndTime "8:39:51 PST"]
[Termination "ActorXu won by resignation"]

1. c4 {[%clk 0:03:00.9]} 1... e5 {[%clk 0:02:59.5]} 2. g3 {[%clk 0:03:01.2]}
2... Nf6 {[%clk 0:02:58.8]} 3. Bg2 {[%clk 0:03:01.8]} 3... Bc5 {[%clk
0:02:59.2]} 4. Nc3 {[%clk 0:03:00.3]} 4... O-O {[%clk 0:02:58.8]} 5. Nf3 {[%clk
0:02:59.1]} 5... d6 {[%clk 0:02:57]} 6. O-O {[%clk 0:02:57.5]} 6... c6 {[%clk
0:02:52]} 7. d4 {[%clk 0:02:55.8]} 7... exd4 {[%clk 0:02:51.6]} 8. Nxd4 {[%clk
0:02:56.7]} 8... a5 {[%clk 0:02:51.4]} 9. b3 {[%clk 0:02:56.3]} 9... Nbd7 {[%clk
0:02:49.5]} 10. Bb2 {[%clk 0:02:56.6]} 10... Re8 {[%clk 0:02:48.9]} 11. e3
{[%clk 0:02:54.3]} 11... Nf8 {[%clk 0:02:48.5]} 12. h3 {[%clk 0:02:54.6]} 12...
Ng6 {[%clk 0:02:47.3]} 13. Qd2 {[%clk 0:02:50.7]} 13... Bd7 {[%clk 0:02:45.9]}
14. Rad1 {[%clk 0:02:48.1]} 14... Qc8 {[%clk 0:02:43.4]} 15. Kh2 {[%clk
0:02:48.5]} 15... Re5 {[%clk 0:02:40.3]} 16. Nf3 {[%clk 0:02:16.3]} 16... Rh5
{[%clk 0:02:31.7]} 17. Ng1 {[%clk 0:02:14.3]} 17... Ne5 {[%clk 0:02:05.1]} 18.
Na4 {[%clk 0:02:08.3]} 18... Bxh3 {[%clk 0:01:52.1]} 19. Bxe5 {[%clk 0:02:02.5]}
19... Ng4+ {[%clk 0:01:28]} 20. Kh1 {[%clk 0:02:00]} 20... Bxg2+ {[%clk
0:01:24.6]} 21. Kxg2 {[%clk 0:02:00.2]} 21... Rh2+ {[%clk 0:01:24.8]} 22. Kf3
{[%clk 0:01:57.8]} 22... Nxe5+ {[%clk 0:01:25.1]} 23. Ke4 {[%clk 0:01:31.3]}
23... Qg4+ {[%clk 0:01:20.3]} 0-1

[Event "Early-Titled-Tuesday-Blitz-February-13-2024"]
[Site "Chess.com"]
[Date "2024.02.13"]
[Round "4"]
[White "KaterynaLagno"]
[Black "ACollins05"]
[Result "1-0"]
[WhiteElo "2798"]
[BlackElo "2456"]
[TimeControl "180+1"]
[EndTime "8:40:05 PST"]
[Termination "KaterynaLagno won by resignation"]

1. e4 {[%clk 0:03:00.9]} 1... c5 {[%clk 0:02:59.4]} 2. Nf3 {[%clk 0:03:00.4]}
2... d6 {[%clk 0:02:58.5]} 3. d4 {[%clk 0:02:59.9]} 3... cxd4 {[%clk 0:02:59.4]}
4. Nxd4 {[%clk 0:03:00.7]} 4... Nf6 {[%clk 0:03:00]} 5. Nc3 {[%clk 0:03:01.4]}
5... Nc6 {[%clk 0:03:00.2]} 6. Bg5 {[%clk 0:03:00.5]} 6... e6 {[%clk 0:02:59.3]}
7. Qd3 {[%clk 0:02:58.9]} 7... Be7 {[%clk 0:02:58.9]} 8. Nxc6 {[%clk 0:02:56.3]}
8... bxc6 {[%clk 0:02:58.6]} 9. O-O-O {[%clk 0:02:57.2]} 9... Qa5 {[%clk
0:02:50.7]} 10. h4 {[%clk 0:02:47.1]} 10... O-O {[%clk 0:02:48.4]} 11. Be2
{[%clk 0:02:44.4]} 11... Rb8 {[%clk 0:02:44.8]} 12. Qg3 {[%clk 0:02:32.2]} 12...
Ba6 {[%clk 0:02:17]} 13. Bxa6 {[%clk 0:02:29.8]} 13... Qxa6 {[%clk 0:02:17.9]}
14. h5 {[%clk 0:02:26.4]} 14... Qb6 {[%clk 0:02:07.1]} 15. b3 {[%clk 0:02:24.6]}
15... Kh8 {[%clk 0:01:52.4]} 16. h6 {[%clk 0:02:22.4]} 16... g6 {[%clk
0:01:49.2]} 17. Qh4 {[%clk 0:02:10.2]} 17... Qd8 {[%clk 0:01:29]} 18. Rxd6
{[%clk 0:02:10]} 18... Qxd6 {[%clk 0:01:21.1]} 19. Bxf6+ {[%clk 0:02:09.8]}
19... Kg8 {[%clk 0:01:18.3]} 20. Bxe7 {[%clk 0:02:10.1]} 20... Qe5 {[%clk
0:01:14.6]} 21. Bxf8 {[%clk 0:02:04.5]} 21... Rxf8 {[%clk 0:00:40.8]} 22. Kb2
{[%clk 0:02:04]} 22... c5 {[%clk 0:00:37.9]} 23. f4 {[%clk 0:02:04.1]} 23... Qc7
{[%clk 0:00:34.4]} 24. Qf6 {[%clk 0:02:02.9]} 1-0

[Event "Early-Titled-Tuesday-Blitz-February-13-2024"]
[Site "Chess.com"]
[Date "2024.02.13"]
[Round "4"]
[White "Schachmalanders"]
[Black "YurasovMat-2012"]
[Result "0-1"]
[WhiteElo "2450"]
[BlackElo "2677"]
[TimeControl "180+1"]
[EndTime "8:40:08 PST"]
[Termination "YurasovMat-2012 won by resignation"]

1. e4 {[%clk 0:03:00.9]} 1... e5 {[%clk 0:02:59.1]} 2. Nc3 {[%clk 0:02:58.5]}
2... Nf6 {[%clk 0:02:58.5]} 3. d4 {[%clk 0:02:58.5]} 3... exd4 {[%clk
0:02:56.1]} 4. Qxd4 {[%clk 0:02:58.4]} 4... Nc6 {[%clk 0:02:55.9]} 5. Qd3 {[%clk
0:02:57.4]} 5... Bb4 {[%clk 0:02:55.3]} 6. Bd2 {[%clk 0:02:56.3]} 6... O-O
{[%clk 0:02:55]} 7. O-O-O {[%clk 0:02:55.1]} 7... Re8 {[%clk 0:02:54]} 8. f3
{[%clk 0:02:54.8]} 8... d6 {[%clk 0:02:53.4]} 9. Bg5 {[%clk 0:02:53]} 9... Be6
{[%clk 0:02:51.6]} 10. Kb1 {[%clk 0:02:50.8]} 10... Ne5 {[%clk 0:02:48.3]} 11.
Qd2 {[%clk 0:02:42.9]} 11... Bxc3 {[%clk 0:02:42.3]} 12. Qxc3 {[%clk 0:02:42.4]}
12... Nxe4 {[%clk 0:02:42.1]} 13. fxe4 {[%clk 0:02:22.1]} 13... Qxg5 {[%clk
0:02:39.9]} 14. Nf3 {[%clk 0:02:22.7]} 14... Nxf3 {[%clk 0:02:38.2]} 15. gxf3
{[%clk 0:02:22.7]} 15... Rac8 {[%clk 0:02:31]} 16. Bb5 {[%clk 0:02:19.9]} 16...
Qxb5 {[%clk 0:02:30.2]} 17. Rhg1 {[%clk 0:02:20.3]} 17... Qe5 {[%clk 0:02:30]}
18. Qe3 {[%clk 0:02:17.5]} 18... Qc5 {[%clk 0:02:09.8]} 19. Qh6 {[%clk
0:01:49.7]} 19... g6 {[%clk 0:02:00]} 20. h4 {[%clk 0:01:49.4]} 20... Qc4 {[%clk
0:01:57]} 21. b3 {[%clk 0:01:48.6]} 21... Qc3 {[%clk 0:01:56.8]} 22. h5 {[%clk
0:01:48]} 22... Qg7 {[%clk 0:01:56.6]} 23. Qe3 {[%clk 0:01:45.4]} 23... a5
{[%clk 0:01:53]} 24. f4 {[%clk 0:01:40.3]} 24... a4 {[%clk 0:01:51.1]} 25. Qf3
{[%clk 0:01:39.7]} 25... axb3 {[%clk 0:01:49.3]} 26. cxb3 {[%clk 0:01:38.5]}
26... f5 {[%clk 0:01:41.4]} 27. hxg6 {[%clk 0:01:35.3]} 27... hxg6 {[%clk
0:01:40.9]} 28. e5 {[%clk 0:01:29.1]} 28... dxe5 {[%clk 0:01:40.4]} 29. fxe5
{[%clk 0:01:29.5]} 29... f4 {[%clk 0:01:31.3]} 30. Qxf4 {[%clk 0:01:29]} 30...
Bf5+ {[%clk 0:01:31.4]} 31. Kb2 {[%clk 0:01:25.4]} 31... Rxe5 {[%clk 0:01:30.8]}
32. Qxe5 {[%clk 0:01:26.3]} 32... Qxe5+ {[%clk 0:01:30.7]} 0-1

[Event "Early-Titled-Tuesday-Blitz-February-13-2024"]
[Site "Chess.com"]
[Date "2024.02.13"]
[Round "4"]
[White "Yurovskykh_Oleksandr"]
[Black "Nechitaylo_Nikita"]
[Result "1-0"]
[WhiteElo "2660"]
[BlackElo "2327"]
[TimeControl "180+1"]
[EndTime "8:40:09 PST"]
[Termination "Yurovskykh_Oleksandr won on time"]

1. d4 {[%clk 0:02:52.6]} 1... Nf6 {[%clk 0:02:59.8]} 2. Nf3 {[%clk 0:02:52]}
2... e6 {[%clk 0:03:00.2]} 3. Bf4 {[%clk 0:02:49.1]} 3... d5 {[%clk 0:03:00.4]}
4. e3 {[%clk 0:02:48.9]} 4... Bd6 {[%clk 0:03:01.1]} 5. Bg3 {[%clk 0:02:47]}
5... O-O {[%clk 0:03:00.7]} 6. Nbd2 {[%clk 0:02:46.5]} 6... c5 {[%clk
0:02:58.2]} 7. c3 {[%clk 0:02:46.3]} 7... Qc7 {[%clk 0:02:58.2]} 8. dxc5 {[%clk
0:02:46.3]} 8... Qxc5 {[%clk 0:02:55.1]} 9. Bd3 {[%clk 0:02:46.3]} 9... Nbd7
{[%clk 0:02:53.2]} 10. Qe2 {[%clk 0:02:46.4]} 10... e5 {[%clk 0:02:47.4]} 11. e4
{[%clk 0:02:46]} 11... dxe4 {[%clk 0:02:40.7]} 12. Bxe4 {[%clk 0:02:42.5]} 12...
Qb6 {[%clk 0:02:15.7]} 13. Nc4 {[%clk 0:02:32.1]} 13... Qc7 {[%clk 0:02:07]} 14.
Nxd6 {[%clk 0:02:27.6]} 14... Qxd6 {[%clk 0:02:07.9]} 15. Bc2 {[%clk 0:02:26.6]}
15... Re8 {[%clk 0:01:49.1]} 16. O-O {[%clk 0:02:26.4]} 16... Qe7 {[%clk
0:01:25.7]} 17. Rfe1 {[%clk 0:02:24.9]} 17... e4 {[%clk 0:01:24.9]} 18. Nd4
{[%clk 0:02:25.2]} 18... Nc5 {[%clk 0:01:21.5]} 19. Nb5 {[%clk 0:02:20.2]} 19...
Nd3 {[%clk 0:00:01.3]} 20. Bxd3 {[%clk 0:02:18.9]} 1-0

[Event "Early-Titled-Tuesday-Blitz-February-13-2024"]
[Site "Chess.com"]
[Date "2024.02.13"]
[Round "4"]
[White "ama18"]
[Black "krzyzan94"]
[Result "0-1"]
[WhiteElo "2561"]
[BlackElo "2790"]
[TimeControl "180+1"]
[EndTime "8:40:14 PST"]
[Termination "krzyzan94 won by resignation"]

1. Nf3 {[%clk 0:03:00.9]} 1... b6 {[%clk 0:02:59.6]} 2. b3 {[%clk 0:02:59]} 2...
Bb7 {[%clk 0:03:00.5]} 3. e3 {[%clk 0:02:58.4]} 3... g6 {[%clk 0:03:00.3]} 4.
Bb2 {[%clk 0:02:58.1]} 4... Nf6 {[%clk 0:03:01]} 5. c4 {[%clk 0:02:48]} 5... Bg7
{[%clk 0:03:01.3]} 6. Nc3 {[%clk 0:02:45.7]} 6... O-O {[%clk 0:03:01.9]} 7. Be2
{[%clk 0:02:45.9]} 7... c5 {[%clk 0:03:02.6]} 8. O-O {[%clk 0:02:40.6]} 8... d5
{[%clk 0:03:01.2]} 9. Nxd5 {[%clk 0:02:39.8]} 9... Nxd5 {[%clk 0:03:02.1]} 10.
Bxg7 {[%clk 0:02:40]} 10... Kxg7 {[%clk 0:03:02.5]} 11. cxd5 {[%clk 0:02:39.5]}
11... Qxd5 {[%clk 0:03:03.4]} 12. d4 {[%clk 0:02:31.8]} 12... cxd4 {[%clk
0:03:03.8]} 13. Qxd4+ {[%clk 0:02:32.6]} 13... Qxd4 {[%clk 0:03:03.5]} 14. Nxd4
{[%clk 0:02:33.5]} 14... Nd7 {[%clk 0:03:03.9]} 15. Rac1 {[%clk 0:02:27.3]}
15... Rac8 {[%clk 0:03:04.6]} 16. Bf3 {[%clk 0:02:16.9]} 16... Bxf3 {[%clk
0:03:03.9]} 17. Nxf3 {[%clk 0:02:17.8]} 17... Nc5 {[%clk 0:03:03.5]} 18. g3
{[%clk 0:01:54.2]} 18... Nd3 {[%clk 0:03:04]} 19. Rxc8 {[%clk 0:01:53.6]} 19...
Rxc8 {[%clk 0:03:04.9]} 20. Rd1 {[%clk 0:00:42.3]} 20... Rc1 {[%clk 0:03:05.4]}
21. Rxc1 {[%clk 0:00:42.6]} 21... Nxc1 {[%clk 0:03:06.3]} 22. Nd4 {[%clk
0:00:43]} 22... Nxa2 {[%clk 0:03:06.5]} 23. Nc6 {[%clk 0:00:42.4]} 23... Nc1
{[%clk 0:03:05.6]} 24. b4 {[%clk 0:00:42.4]} 24... Nd3 {[%clk 0:03:03.7]} 25. b5
{[%clk 0:00:42]} 25... Nc5 {[%clk 0:02:55.6]} 26. Nxe7 {[%clk 0:00:34.8]} 26...
a6 {[%clk 0:02:53.3]} 27. bxa6 {[%clk 0:00:31.8]} 27... Nxa6 {[%clk 0:02:54.2]}
28. Kf1 {[%clk 0:00:27.4]} 28... Nc7 {[%clk 0:02:54.8]} 29. Ke2 {[%clk
0:00:26.2]} 29... Kf6 {[%clk 0:02:55.4]} 30. Nc6 {[%clk 0:00:25]} 30... Ke6
{[%clk 0:02:56.1]} 31. e4 {[%clk 0:00:19.3]} 31... Kd6 {[%clk 0:02:56.3]} 32.
Nd4 {[%clk 0:00:19.2]} 32... Kc5 {[%clk 0:02:56.5]} 33. Kd3 {[%clk 0:00:19.2]}
33... b5 {[%clk 0:02:57.1]} 34. f4 {[%clk 0:00:18.2]} 34... Kb4 {[%clk
0:02:57.1]} 35. Nc6+ {[%clk 0:00:18]} 35... Ka3 {[%clk 0:02:57.6]} 36. Kc2
{[%clk 0:00:15]} 36... b4 {[%clk 0:02:57.9]} 37. Kb1 {[%clk 0:00:15.1]} 37... b3
{[%clk 0:02:57]} 38. e5 {[%clk 0:00:14.7]} 38... Nb5 {[%clk 0:02:57.3]} 39. Na5
{[%clk 0:00:05.3]} 39... Nc3+ {[%clk 0:02:58.2]} 0-1

[Event "Early-Titled-Tuesday-Blitz-February-13-2024"]
[Site "Chess.com"]
[Date "2024.02.13"]
[Round "4"]
[White "Ready4abattle"]
[Black "doctorcristian"]
[Result "0-1"]
[WhiteElo "2240"]
[BlackElo "2614"]
[TimeControl "180+1"]
[EndTime "8:40:35 PST"]
[Termination "doctorcristian won by resignation"]

1. e4 {[%clk 0:03:00.9]} 1... c6 {[%clk 0:02:42.5]} 2. d4 {[%clk 0:02:44.1]}
2... d5 {[%clk 0:02:41.5]} 3. e5 {[%clk 0:02:44.7]} 3... Bf5 {[%clk 0:02:30.7]}
4. Nd2 {[%clk 0:02:44.9]} 4... e6 {[%clk 0:02:25]} 5. Nb3 {[%clk 0:02:44.2]}
5... Nd7 {[%clk 0:02:22.9]} 6. Nf3 {[%clk 0:02:43.3]} 6... f6 {[%clk 0:02:19.5]}
7. exf6 {[%clk 0:02:37.2]} 7... Qxf6 {[%clk 0:02:19.6]} 8. Be3 {[%clk
0:02:31.3]} 8... Bd6 {[%clk 0:02:19.7]} 9. Be2 {[%clk 0:02:21.6]} 9... Ne7
{[%clk 0:02:17.4]} 10. O-O {[%clk 0:02:19.8]} 10... O-O {[%clk 0:02:16.5]} 11.
c4 {[%clk 0:02:18]} 11... h6 {[%clk 0:02:13.5]} 12. c5 {[%clk 0:02:06.5]} 12...
Bc7 {[%clk 0:02:12.1]} 13. Nbd2 {[%clk 0:02:06.6]} 13... e5 {[%clk 0:02:09.1]}
14. Nxe5 {[%clk 0:01:55.7]} 14... Nxe5 {[%clk 0:02:08.8]} 15. dxe5 {[%clk
0:01:56.6]} 15... Qxe5 {[%clk 0:02:09.1]} 16. Nf3 {[%clk 0:01:53.7]} 16... Qxb2
{[%clk 0:02:06.5]} 17. Nd4 {[%clk 0:01:49.3]} 17... Qa3 {[%clk 0:01:55.1]} 18.
Bg4 {[%clk 0:01:39.2]} 18... Rae8 {[%clk 0:01:52.4]} 19. Nxf5 {[%clk 0:01:18.3]}
19... Nxf5 {[%clk 0:01:46.6]} 20. Bxf5 {[%clk 0:01:19.2]} 20... Rxf5 {[%clk
0:01:42.8]} 21. Qg4 {[%clk 0:01:19.9]} 21... Rf7 {[%clk 0:01:37.3]} 22. Rab1
{[%clk 0:01:14.2]} 22... Qxa2 {[%clk 0:01:34.5]} 23. Kh1 {[%clk 0:00:57.1]}
23... Qa6 {[%clk 0:01:28.3]} 24. Bxh6 {[%clk 0:00:53.9]} 24... Re4 {[%clk
0:01:22.9]} 25. Qc8+ {[%clk 0:00:47]} 25... Kh7 {[%clk 0:01:23]} 26. Be3 {[%clk
0:00:47.2]} 26... Rxe3 {[%clk 0:01:22.6]} 0-1

[Event "Early-Titled-Tuesday-Blitz-February-13-2024"]
[Site "Chess.com"]
[Date "2024.02.13"]
[Round "4"]
[White "jefferyx"]
[Black "BlueWizzard"]
[Result "1-0"]
[WhiteElo "3018"]
[BlackElo "2870"]
[TimeControl "180+1"]
[EndTime "8:41:04 PST"]
[Termination "jefferyx won by resignation"]

1. e4 {[%clk 0:03:00.9]} 1... e5 {[%clk 0:03:00.2]} 2. Nf3 {[%clk 0:03:00.9]}
2... Nc6 {[%clk 0:03:00.4]} 3. Nc3 {[%clk 0:03:01.3]} 3... Bb4 {[%clk
0:02:59.9]} 4. Nd5 {[%clk 0:02:40.1]} 4... Nf6 {[%clk 0:02:59.9]} 5. Nxb4 {[%clk
0:02:39.7]} 5... Nxb4 {[%clk 0:03:00.8]} 6. d4 {[%clk 0:02:23.9]} 6... O-O
{[%clk 0:02:57.1]} 7. dxe5 {[%clk 0:02:23.1]} 7... Nxe4 {[%clk 0:02:56.9]} 8. c3
{[%clk 0:02:04.4]} 8... Nc6 {[%clk 0:02:56.6]} 9. Qd5 {[%clk 0:02:04.7]} 9...
Nxf2 {[%clk 0:02:33.7]} 10. Kxf2 {[%clk 0:02:04.4]} 10... d6 {[%clk 0:02:34.5]}
11. exd6 {[%clk 0:02:02.3]} 11... Be6 {[%clk 0:02:35]} 12. Qd1 {[%clk
0:01:58.7]} 12... cxd6 {[%clk 0:02:35.3]} 13. Be3 {[%clk 0:01:55.3]} 13... Bg4
{[%clk 0:02:34.5]} 14. h3 {[%clk 0:01:38.9]} 14... Bh5 {[%clk 0:02:31.9]} 15.
Qd5 {[%clk 0:01:32.1]} 15... Bxf3 {[%clk 0:02:26.3]} 16. Qxf3 {[%clk 0:01:31.2]}
16... Ne5 {[%clk 0:02:26]} 17. Qg3 {[%clk 0:01:29.6]} 17... Qf6+ {[%clk
0:02:23]} 18. Kg1 {[%clk 0:01:29.6]} 18... Qf5 {[%clk 0:02:23.6]} 19. Bd4 {[%clk
0:01:27.1]} 19... Qc2 {[%clk 0:02:23.4]} 20. Qf2 {[%clk 0:01:24.7]} 20... Qg6
{[%clk 0:02:19.6]} 21. Kh2 {[%clk 0:01:21.3]} 21... b6 {[%clk 0:02:17.8]} 22.
Re1 {[%clk 0:01:19]} 22... Rae8 {[%clk 0:02:17.6]} 23. Bb5 {[%clk 0:01:17.8]}
23... Re6 {[%clk 0:02:17.5]} 24. Rhf1 {[%clk 0:01:07]} 24... Qh5 {[%clk
0:01:55.3]} 25. Be2 {[%clk 0:01:05]} 25... Qg5 {[%clk 0:01:51.8]} 26. Qf4 {[%clk
0:00:56.6]} 26... Qg6 {[%clk 0:01:48.4]} 27. Bg4 {[%clk 0:00:49.2]} 27... Rf6
{[%clk 0:01:22.8]} 28. Bf5 {[%clk 0:00:49]} 28... Qh5 {[%clk 0:01:17.6]} 29. g4
{[%clk 0:00:47.7]} 29... Qh4 {[%clk 0:01:11.3]} 30. Bf2 {[%clk 0:00:46.2]} 30...
Qh6 {[%clk 0:01:06]} 31. Qxh6 {[%clk 0:00:46.1]} 31... Rxh6 {[%clk 0:01:04.7]}
32. Be3 {[%clk 0:00:46.4]} 32... g5 {[%clk 0:01:02.8]} 1-0